Cogmind - Beta 16 @@@ ROGUE MODE // 2025.12.28 @ 23:59:51 Player: Legato Result: Destroyed by G-67 Veteran with Field Laser Performance ------------- Evolutions (6) 3000 Regions Visited (15) 3000 Robots Destroyed (92) 460 Value Destroyed (3095) 3095 Prototype IDs (10) 200 Alien Tech Used (0) 0 Bonus (2576) 2576 TOTAL SCORE: 12331 Bonus ------- Follower Combat Kills 322 Entered DSFs 500 Acquired ECA 300 Met Warlord at Base 500 MAIN.C Attacked Warlord 500 Warlord Defense Kills 454 Cogmind --------- Core Integrity 0/1150 Matter 300/300 Energy 55/100 System Corruption 4% Temperature Cool (30) Movement Core (50) Location -4/Warlord Parts ------- > --- POWER (2) -------- (None) > --- PROPULSION (7) --- (None) > --- UTILITY (7) ------ (None) > --- WEAPON (3) ------- (None) > --- INVENTORY (5) ---- Heavy Phase Cannon Makeshift Hammer Makeshift Hammer Vortex Lance (40) Peak State ------------ > --- POWER ------------ Neutrino Core Improved Fusion Compressor > --- PROPULSION ------- Spiked Heavy Treads Makeshift Leg Makeshift Leg Myomer Leg Myomer Leg Myomer Leg > --- UTILITY ---------- Terrain Scanner Encrypted Comm Array Focal Shield Improved Point Defense System > --- WEAPON ----------- HERF Cannon Heavy Mace Phasing Sabre > --- INVENTORY -------- Makeshift Leg Myomer Leg Heavy Phase Cannon [Rating: 91] Favorites ----------- Power Makeshift Power Source Engine Makeshift Power Source Power Core Neutrino Core Reactor Cold Fusion Reactor Propulsion Flexi-carbon Leg Treads Spiked Heavy Treads Leg Flexi-carbon Leg Wheel Wheel Hover Unit Gravmag Array Flight Unit Biomechanical Wings Utility Energy Filter Device Energy Filter Storage Medium Storage Unit Processor Enhanced Optical Array Hackware System Shield Protection Hardened Medium Armor Plating Weapon Arc Thrower Energy Gun Arc Thrower Energy Cannon Light EM Pulse Cannon Ballistic Gun Gauss Rifle Ballistic Cannon Heavy Flak Cannon Launcher Heavy Shock Bomb Launcher Special Weapon Improved Plasma Cutter Impact Weapon Flail Slashing Weapon Phasing Sabre Piercing Weapon Vortex Lance Build | -11 -10 -9 -8 -7 -7 -7 -6 -6 -6 -6 -5 -4 -4 -4 -4 ------- Run | Yrd Mat Mat Mat Fac Low Low Fac Was Fac DSF Fac Fac Upp Upp War Slots Evolved 12 | . . 2 2 2 . . 2 . . . 2 2 . . . Power 1 | . . . . . . . . . . . . 1 . . . Propulsion 5 | . . 1 1 . . . 1 . . . 1 1 . . . Utility 5 | . . 1 1 1 . . 1 . . . 1 . . . . Weapon 1 | . . . . 1 . . . . . . . . . . . Parts Attached 167 | 7 7 19 19 9 4 2 12 9 2 5 11 9 8 13 31 Power 25 | 1 2 2 4 2 . 1 2 1 . 1 2 1 . 1 5 Engine 11 | 1 2 2 1 . . . 2 . . . . . . . 3 Core 12 | . . . 3 2 . 1 . 1 . 1 1 1 . 1 1 Reactor 2 | . . . . . . . . . . . 1 . . . 1 Propulsion 46 | 2 . 11 5 1 . . 3 4 . 2 2 1 2 7 6 Treads 10 | . . 6 . . . . 1 1 . . . . 1 . 1 Leg 24 | 2 . 2 . . . . . 3 . 2 2 . 1 7 5 Wheel 5 | . . 3 1 1 . . . . . . . . . . . Hover 2 | . . . . . . . 1 . . . . 1 . . . Flight 5 | . . . 4 . . . 1 . . . . . . . . Utility 57 | 2 2 2 7 4 4 1 3 2 2 1 6 5 3 3 10 Device 25 | 1 . . . 1 2 . 2 . . . 5 3 2 2 7 Storage 7 | 1 2 . 3 1 . . . . . . . . . . . Processor 12 | . . . 2 2 1 . 1 1 . . 1 . 1 1 2 Hackware 1 | . . . 1 . . . . . . . . . . . . Protection 12 | . . 2 1 . 1 1 . 1 2 1 . 2 . . 1 Artifact . | . . . . . . . . . . . . . . . . Weapon 39 | 2 3 4 3 2 . . 4 2 . 1 1 2 3 2 10 Energy Gun 9 | 2 . . . . . . 2 1 . . . . . . 4 Energy Cannon 6 | . 1 1 . 1 . . 1 . . . . . 1 1 . Ballistic Gun 10 | . 1 1 3 1 . . . . . . . 1 1 1 1 Ballistic Cannon 1 | . . . . . . . 1 . . . . . . . . Launcher 4 | . 1 1 . . . . . . . . . 1 . . 1 Special Weapon 3 | . . . . . . . . . . . 1 . . . 2 Impact Weapon 2 | . . 1 . . . . . . . . . . 1 . . Slashing Weapon 2 | . . . . . . . . 1 . 1 . . . . . Piercing Weapon 2 | . . . . . . . . . . . . . . . 2 Special Melee Weapon . | . . . . . . . . . . . . . . . . Unidentified Prototypes 10 | . . . . . . . 2 . . . 2 1 . . 5 Parts Lost 64 | . 1 4 6 4 6 6 4 . . . 2 4 3 19 5 Power 10 | . 1 2 1 . 1 2 . . . . . . . 3 . Propulsion 18 | . . . 2 1 1 1 2 . . . 1 2 . 7 1 Utility 18 | . . . 2 2 2 1 1 . . . 1 . 2 5 2 Weapon 18 | . . 2 1 1 2 2 1 . . . . 2 1 4 2 Highest Loss Streak 6 | . 1 3 5 3 6 6 1 . . . 1 3 2 5 4 To Critical Strikes 1 | . . . . . 1 . . . . . . . . . . Average Backups 4 | 4 9 8 6 6 5 6 3 4 3 3 3 3 2 1 4 Power 1 | . 1 . 1 2 1 . . 1 2 2 2 1 . . . Propulsion . | 2 3 2 2 . . 1 . . . . . . . . . Utility 1 | . 2 3 2 2 3 4 1 1 . . 1 2 1 . . Weapon 1 | . 2 1 1 1 . . . 1 1 . . . . . 3 Tool/Special . | . . . . . . . . . . . . . . . . Unused Backups 17 | . 1 4 . 1 . 1 . 3 . 1 1 1 . . 4 Power 2 | . . . . 1 . . . . . . . 1 . . . Propulsion 5 | . . 4 . . . . . . . . 1 . . . . Utility 2 | . . . . . . 1 . 1 . . . . . . . Weapon 8 | . 1 . . . . . . 2 . 1 . . . . 4 Tool/Special . | . . . . . . . . . . . . . . . . Average Slot Usage (%) 68 | . 98 93 90 81 69 38 29 49 76 83 87 76 49 63 56 Engine 3 | . 13 9 3 . . . 3 3 . . . . . . 7 Core 3 | . . . 5 7 6 4 . 2 6 6 1 5 7 7 . Treads 2 | . . 13 . . . . 3 1 . . . . 4 2 4 Leg 11 | . 28 14 9 9 4 1 . 9 20 25 30 22 2 15 4 Wheel 1 | . . . 18 6 1 . . . . . . . . . . Device 10 | . 14 11 3 2 4 . 8 . . . 3 7 14 19 18 Storage 4 | . 14 11 13 9 9 6 3 . . . . . . . . Processor 6 | . . . 3 14 17 12 1 8 13 13 11 6 . 1 7 Protection 5 | . . 11 8 2 4 9 . 3 16 20 17 15 7 2 . Energy Gun 2 | . 4 . . . . . 1 11 13 6 . . . . 7 Energy Cannon 1 | . 8 6 1 2 1 . 1 . . . . . 1 2 . Ballistic Gun 3 | . 11 4 10 11 7 1 . . . . . 3 1 1 1 Impact Weapon 2 | . . 6 3 5 7 2 . . . . . . . 4 . Slashing Weapon 2 | . . . . . . . . 2 6 10 11 6 4 4 . Peak Build Rating 91 | 7 10 15 36 35 31 21 38 57 50 63 77 81 77 91 85 Average Rating 45 | 5 9 12 20 31 23 11 18 34 49 58 71 73 61 69 62 On Entrance 31 | . 7 9 11 21 31 22 1 13 45 50 60 71 71 75 24 Avg Prop Armor Cover (%) 8 | . . 10 . 8 . . 29 7 . . 2 2 2 11 7 Naked Turns 181 | . . . . . . 15 53 . . . . . . . 113 Heaviest Build 100 | 12 21 32 24 29 31 18 60 25 41 59 57 100 83 64 47 Greatest Support 120 | 20 20 69 40 30 28 3 20 70 60 95 110 90 75 120 75 Greatest Overweight (x) 19 | . 1 3 3 1 4 5 19 . . . . 6 1 3 6 Average Overweight (x) . | . . . . . . . . . . . . . . . . Largest Inventory Capacity 15 | 8 15 15 10 10 8 8 10 5 5 5 5 5 5 5 5 Average Capacity 6 | 7 9 11 8 10 8 7 8 5 5 5 5 5 5 5 5 Most Carried 10 | 6 10 10 8 7 8 7 5 5 4 5 5 5 5 5 5 Average Carried 4 | 4 9 8 6 6 5 6 3 4 3 4 4 4 2 2 4 Final Capacity 10 | 8 10 8 10 10 8 5 5 5 5 5 5 5 5 5 5 Final Carried 10 | 6 10 8 7 7 8 5 5 5 3 5 4 4 . 3 4 Class Distribution -------------------- 53% | Mutant 13% | Derelict-Tank 11% | Derelict-Mutant 10% | Scavenger-Mutant 9% | Scavenger-Gladiator Dominant Class ---------------- Mutant | -10/Materials Mutant | -9/Materials Mutant | -8/Materials Mutant | -7/Factory Mutant | -7/Lower Caves Mutant | -7/Lower Caves Mutant | -6/Factory Scavenger-Mutant | -6/Waste Scavenger-Mutant | -6/Factory Scavenger-Gladiator | -6/DSF Scavenger-Gladiator | -5/Factory Scavenger-Mutant | -4/Factory Mutant | -4/Upper Caves Derelict-Mutant | -4/Upper Caves Derelict-Tank | -4/Warlord Resources | -11 -10 -9 -8 -7 -7 -7 -6 -6 -6 -6 -5 -4 -4 -4 -4 ----------- Run | Yrd Mat Mat Mat Fac Low Low Fac Was Fac DSF Fac Fac Upp Upp War Matter Collected 3267 | 270 147 439 401 199 131 3 57 200 . 80 105 127 509 252 347 Remotely . | . . . . . . . . . . . . . . . . Salvage Created 3696 | 104 319 885 494 251 62 . 43 . . 229 210 251 357 474 17 Parts 167 | 4 20 36 24 10 5 . 2 . . 7 16 13 9 21 . Haulers Intercepted 1 | . . 1 . . . . . . . . . . . . . Recyclers Shooed 3 | . . 1 2 . . . . . . . . . . . . Parts Field Recycled . | . . . . . . . . . . . . . . . . Retrieved Matter . | . . . . . . . . . . . . . . . . Parts Self-Destructed 27 | . . . . . 7 . . . . . . . 6 14 . Prevented 6 | . . . . . . . . . . . . . 2 4 . Parts Restored . | . . . . . . . . . . . . . . . . Kills | -11 -10 -9 -8 -7 -7 -7 -6 -6 -6 -6 -5 -4 -4 -4 -4 ------- Run | Yrd Mat Mat Mat Fac Low Low Fac Was Fac DSF Fac Fac Upp Upp War Combat Hostiles Destroyed 62 | . 6 14 7 5 3 . 1 . . 2 4 5 3 9 3 Melee 26 | . . 4 1 2 . . . . . 2 4 3 2 8 . Guns 15 | . 4 1 5 1 3 . . . . . . . 1 . . Cannons 5 | . . 3 . 1 . . 1 . . . . . . . . AOE 13 | . 2 5 1 . . . . . . . . 2 . . 3 Classes Destroyed 17 | 2 3 6 1 . . . . . . 1 . . 1 1 2 Worker 4 | . 1 1 2 . . . . . . . . . . . . Builder 5 | . . 1 2 1 . . . . . . . 1 . . . Tunneler 6 | 2 2 1 . 1 . . . . . . . . . . . Hauler 1 | . . 1 . . . . . . . . . . . . . Recycler 7 | 1 . 5 1 . . . . . . . . . . . . Operator 2 | . . 1 1 . . . . . . . . . . . . Watcher 5 | . 2 2 1 . . . . . . . . . . . . Swarmer 17 | . . 4 . 3 3 . . . . . . 3 . 4 . Grunt 20 | . 6 6 3 . . . . . . 1 2 . 1 1 . Brawler 1 | . . 1 . . . . . . . . . . . . . Duelist 1 | . . . . . . . . . . . . . . 1 . Protector 1 | . . . . . . . . . . . . . . . 1 Sentry 10 | . . 3 3 2 . . 1 . . . . . . 1 . Hunter 7 | . . . 1 . . . . . . . . 2 2 2 . Programmer 3 | . . . . . . . . . . 1 2 . . . . Behemoth 2 | . . . . . . . . . . . . . . . 2 Packrat 1 | . . . . . . . . . . . . . 1 . . Samaritan 2 | . . . . . . . . . . . . . 2 . . Best Kill Streak 8 | 3 7 6 8 3 3 . 1 . . 1 2 3 1 4 3 Combat Bots Only 6 | . 4 5 6 3 3 . 1 . . 1 2 3 1 4 3 Max Kills in Single Turn 4 | 2 2 4 2 1 1 . 1 . . 1 1 2 1 1 2 Gunslinging . | . . . . . . . . . . . . . . . . Exploded 2 | . 2 2 1 . . . . . . . . 2 . . 2 Melee 1 | . . 1 1 1 . . . . . 1 1 1 1 1 . Uniques/NPCs Destroyed . | . . . . . . . . . . . . . . . . Combat | -11 -10 -9 -8 -7 -7 -7 -6 -6 -6 -6 -5 -4 -4 -4 -4 -------- Run | Yrd Mat Mat Mat Fac Low Low Fac Was Fac DSF Fac Fac Upp Upp War Hostile Shots Fired 1179 | . 24 91 55 83 42 70 152 . . 12 47 147 133 229 94 Missed 390 | . 9 24 17 28 12 20 65 . . 2 19 39 39 74 42 Hits 789 | . 15 67 38 55 30 50 87 . . 10 28 108 94 155 52 Melee 4 | . . 1 . . . . . . . . . 1 . 2 . Projectile 785 | . 15 66 38 55 30 50 87 . . 10 28 107 94 153 52 AOE 3 | . . . . . . . . . . 1 1 . . . 1 Critical Strikes 28 | . 1 2 . . 1 1 3 . . . 4 2 2 7 5 Actively Blocked 1 | . . 1 . . . . . . . . . . . . . Part Disruptions 1 | . . . . . . . . . . . 1 . . . . Damage Taken 12253 | 10 263 954 725 783 440 856 1409 33 . 183 667 1312 950 2320 1348 Core 2824 | 10 32 214 152 133 76 335 668 . . . 43 85 67 362 647 Absorbed by Shields 20 | . . . . . . . . . . . . . . . 20 Redirected to Shielding 126 | . . 52 39 . . 35 . . . . . . . . . Ignored by Resistances 1316 | . . . . . . . . . . . 19 334 596 367 . Regen/Repaired (Parts) 536 | . . . . . . . . 58 . 36 60 . . . 382 Core Remaining (%) 62 | 96 83 46 72 . . 22 . . . 21 95 . . . . Volleys Fired 149 | 7 28 34 17 6 17 . 7 2 . . . 1 19 5 6 Largest 3 | 2 2 2 2 3 2 . 3 3 . . . 1 1 1 3 Hottest 159 | 80 79 89 89 119 53 . 159 145 . . . 46 46 88 94 Shots Fired 223 | 14 40 52 30 13 19 . 9 6 . . . 1 19 5 15 Gun 152 | 14 28 24 25 8 19 . 1 6 . . . . 15 2 10 Cannon 43 | . 10 16 1 5 . . 8 . . . . . . 3 . Launcher 23 | . 2 12 4 . . . . . . . . 1 4 . . Special 5 | . . . . . . . . . . . . . . . 5 Kinetic 133 | . 28 24 25 8 19 . 7 . . . . . 15 2 5 Thermal 16 | 7 . . . . . . 2 6 . . . . . . 1 Explosive 23 | . 2 12 4 . . . . . . . . . . . 5 Electromagnetic 51 | 7 10 16 1 5 . . . . . . . 1 4 3 4 Robot Hit Streak 12 | 3 9 11 7 10 5 . 6 12 . . . . 4 2 1 Robot Miss Streak 6 | 3 3 2 3 1 2 . 6 . . . . 1 3 2 . Penetration Max 1 | . . . . 1 . . . . . . . . . . . Secondary Targets . | . . . . . . . . . . . . . . . . Shots Hit Robots 233 | 7 25 55 24 15 11 3 8 6 . 8 10 9 23 28 1 Core Hits 139 | 3 14 26 23 8 3 2 9 2 . 3 5 10 8 12 11 Critical Kills . | . . . . . . . . . . . . . . . . Critical Parts Destroyed 7 | . . 3 1 . . . . . . . . . 1 2 . Critical Strikes 21 | . . 3 1 . . . . . . 2 2 1 5 5 2 Destroy 1 | . . . . . . . . . . . . . 1 . . Smash 6 | . . 3 1 . . . . . . . . . . 2 . Sever 14 | . . . . . . . . . . 2 2 1 4 3 2 Melee Attacks 248 | . . 34 10 49 8 4 . . . 9 32 44 16 42 . Impact 115 | . . 34 10 49 8 4 . . . . . . . 10 . Slashing 133 | . . . . . . . . . . 9 32 44 16 32 . Piercing . | . . . . . . . . . . . . . . . . Sneak Attacks 13 | . . 4 1 1 . . . . . . 1 1 5 . . Combat Hostiles 1 | . . . . . . . . . . . . . 1 . . Follow-up Attacks 7 | . . . . . . . . . . . 1 . . 6 . Damage Inflicted 9620 | 185 781 1922 957 474 212 129 165 87 . 311 467 604 917 1092 1317 Guns 1702 | 89 269 228 345 139 212 . 11 87 . . . . 143 31 148 Cannons 697 | . 180 251 . 88 . . 138 . . . . . . 40 . Explosions 2622 | 96 324 712 325 . . . . . . . . 208 67 . 890 Melee 4185 | . . 728 212 247 . 108 . . . 311 467 394 707 1011 . Ramming 141 | . 8 3 75 . . 21 16 . . . . 2 . 10 6 Kinetic 1603 | . 269 228 345 139 212 . 138 . . . . . 143 31 98 Thermal 420 | 130 168 . . . . . 11 87 . . . . . . 24 Explosive 2083 | . 156 712 325 . . . . . . . . . . . 890 Electromagnetic 915 | 55 180 251 . 88 . . . . . . . 208 67 40 26 Impact 1420 | . . 728 212 247 . 108 . . . . . . . 125 . Slashing 3038 | . . . . . . . . . . 311 467 394 707 886 273 Piercing . | . . . . . . . . . . . . . . . . Highest Corruption 6 | . . . 6 1 1 5 2 2 2 6 2 . . . 4 Average Corruption 1 | . . . 3 1 1 3 1 2 2 2 2 . . . 2 Corruption Purged . | . . . . . . . . . . . . . . . . Corruption Blocked . | . . . . . . . . . . . . . . . . Effects 24 | . . . 5 . 6 2 1 3 . 2 . . . . 5 Message Errors 11 | . . . 3 . . 2 . 1 . 1 . . . . 4 Matter Fused 5 | . . . 1 . 3 . . . . . . . . . 1 Energy Discharges 1 | . . . 1 . . . . . . . . . . . . Parts Rejected 1 | . . . . . . . . . . 1 . . . . . Parts Fused 1 | . . . . . 1 . . . . . . . . . . Data Loss (minor) 5 | . . . . . 2 . 1 2 . . . . . . . Overload Shots . | . . . . . . . . . . . . . . . . Overflow Damage 657 | 3 66 213 137 59 . 1 . . . . 45 42 . 91 . Projectiles 12 | . . . 12 . . . . . . . . . . . . Explosions 93 | 3 66 7 10 . . . . . . . . 7 . . . Melee 552 | . . 206 115 59 . 1 . . . . 45 35 . 91 . Knockbacks 8 | . . 3 2 1 . 1 . . . . . . . . 1 Impact 7 | . . 3 1 1 . 1 . . . . . . . . 1 Kinetic . | . . . . . . . . . . . . . . . . Secondary 1 | . . . 1 . . . . . . . . . . . . Self-Inflicted Damage 452 | 10 92 157 149 . . 8 3 . . . . 31 . . 2 Shots 13 | 1 2 6 3 . . . . . . . . 1 . . . Rammed 22 | . . 1 1 . . 13 3 . . . . . . 1 3 Targets Rammed 33 | . 3 1 1 . . 13 3 . . . . 1 . 8 3 Kicked 11 | . 3 . . . . . . . . . . 1 . 7 . Crushed . | . . . . . . . . . . . . . . . . Highest Temperature 456 | 120 140 37 41 84 . 39 33 51 . . 16 456 16 76 400 Average Temperature 101 | 64 68 13 7 48 . 20 12 30 . . 9 177 7 33 151 Received Heat Transfer 2632 | . 111 306 234 78 . 468 336 . . 9 171 96 9 241 573 Effects 14 | . . . . . . . . . . . . 14 . . . Shutdowns 2 | . . . . . . . . . . . . 2 . . . Interference 6 | . . . . . . . . . . . . 6 . . . Matter Decay 2 | . . . . . . . . . . . . 2 . . . Short Circuit 4 | . . . . . . . . . . . . 4 . . . Siege Activations . | . . . . . . . . . . . . . . . . Martial Activations . | . . . . . . . . . . . . . . . . Shielding Activations . | . . . . . . . . . . . . . . . . Robots Disrupted . | . . . . . . . . . . . . . . . . Combat Hostiles . | . . . . . . . . . . . . . . . . Robots Corrupted 11 | . . 5 3 2 . . . . . . . . . 1 . Combat Hostiles 3 | . . 1 . 1 . . . . . . . . . 1 . Parts Fried 17 | . . 9 3 3 . . . . . . . . . 2 . Impact Corruptions 20 | . . 8 5 4 . 1 . . . . . . . 2 . Robots Melted . | . . . . . . . . . . . . . . . . Combat Hostiles . | . . . . . . . . . . . . . . . . Parts Melted . | . . . . . . . . . . . . . . . . Heat Transferred 672 | 175 200 . . . . . 25 222 . . . . . . 50 Parts Sabotaged 1 | . . . . . . . . . . . . 1 . . . Parts Stolen . | . . . . . . . . . . . . . . . . Parts Stripped . | . . . . . . . . . . . . . . . . Power Chain Reactions 2 | 1 1 . . . . . . . . . . . . . . Alert | -11 -10 -9 -8 -7 -7 -7 -6 -6 -6 -6 -5 -4 -4 -4 -4 ------- Run | Yrd Mat Mat Mat Fac Low Low Fac Was Fac DSF Fac Fac Upp Upp War Maximum Alert Level 1 | . 1 1 . . . . . . . . . . . . . Low Security (%) 90 | 100 95 41 100 100 . . 100 100 100 100 100 100 . . . Level 1 9 | . 4 58 . . . . . . . . . . . . . Level 2 . | . . . . . . . . . . . . . . . . Level 3 . | . . . . . . . . . . . . . . . . Level 4 . | . . . . . . . . . . . . . . . . Level 5 . | . . . . . . . . . . . . . . . . High Security . | . . . . . . . . . . . . . . . . Max Security . | . . . . . . . . . . . . . . . . Sterilizations 1 | . . . . . . . . . . 1 . . . . . Peak Influence 274 | 15 213 274 183 76 . . 75 20 5 175 91 77 . . . Initial 103 | . 3 66 103 59 . . 2 9 . 3 91 14 . . . Average 58 | 2 49 175 118 34 . . 16 3 1 117 23 11 . . . Influence Increases 2790 | 15 279 497 269 202 70 30 136 52 5 272 139 194 115 395 120 Destroy 0b10 Robot/C 1340 | . 120 280 140 100 60 . 20 . . 160 80 100 60 180 40 Destroy 0b10 Robot/NC 160 | 15 25 60 35 10 . . . . . 5 . 5 . . 5 Destroy Leader 272 | . 14 76 52 30 10 . 10 . . 30 10 10 10 20 . Allied During Kill 73 | . . . . . . . . . . 71 2 . . . . Successful Hack 22 | . 6 11 . . . . . . 5 . . . . . . Disable Machine 90 | . 30 15 . 15 . . . . . . 15 15 . . . Destroy Structure 338 | . 54 55 42 32 . . 1 52 . 6 32 64 . . . Lose Combat Pursuer 495 | . 30 . . 15 . 30 105 . . . . . 45 195 75 Influence Decreases 2767 | 10 127 409 382 316 88 25 114 79 . 102 285 164 159 306 201 Entered New Map 569 | . 2 91 142 73 8 . 3 18 . 2 84 15 23 4 104 Time Decay 1692 | 10 115 278 180 232 50 20 101 50 . . 171 139 124 171 51 Lost Part 379 | . 10 40 60 11 30 5 10 . . . 20 10 12 131 40 Lost Ally 127 | . . . . . . . . 11 . 100 10 . . . 6 Squads Dispatched 18 | . . 2 . 2 . . 6 . . 2 2 3 . 1 . Investigation 4 | . . 1 . . . . 2 . . . . 1 . . . Extermination 4 | . . . . 1 . . 1 . . . 1 1 . . . Reinforcement 9 | . . 1 . 1 . . 3 . . 2 1 1 . . . Assault 1 | . . . . . . . . . . . . . . 1 . Garrison . | . . . . . . . . . . . . . . . . Intercept . | . . . . . . . . . . . . . . . . Searches Triggered . | . . . . . . . . . . . . . . . . Construction Impeded 2 | . . . . 1 . . . . . . . 1 . . . Haulers Reinforced . | . . . . . . . . . . . . . . . . Active Scanning Responses . | . . . . . . . . . . . . . . . . Cargo Convoy Interrupts 1 | . . . . . . . . . . . . 1 . . . Stealth | -11 -10 -9 -8 -7 -7 -7 -6 -6 -6 -6 -5 -4 -4 -4 -4 --------- Run | Yrd Mat Mat Mat Fac Low Low Fac Was Fac DSF Fac Fac Upp Upp War Distress Signals 13 | . 2 3 2 . . . 2 . . . 2 . . . 2 Communications Jammed . | . . . . . . . . . . . . . . . . Distress Signals . | . . . . . . . . . . . . . . . . Times Spotted 217 | . 10 23 13 8 3 6 30 6 . 4 15 22 7 25 45 Peak Tracking Total 18 | . 3 6 6 3 3 4 18 3 . 2 9 16 3 10 11 Tactical Retreats 15 | . 2 . . 1 . 2 2 . . . . . 3 3 2 Traps | -11 -10 -9 -8 -7 -7 -7 -6 -6 -6 -6 -5 -4 -4 -4 -4 ------- Run | Yrd Mat Mat Mat Fac Low Low Fac Was Fac DSF Fac Fac Upp Upp War Traps Triggered 2 | . . . . . . . 1 . . . 1 . . . . Indirectly . | . . . . . . . . . . . . . . . . Trap Hack Attempts . | . . . . . . . . . . . . . . . . Triggered . | . . . . . . . . . . . . . . . . Disarmed . | . . . . . . . . . . . . . . . . Reprogrammed . | . . . . . . . . . . . . . . . . Reused . | . . . . . . . . . . . . . . . . Traps Extracted . | . . . . . . . . . . . . . . . . Installed . | . . . . . . . . . . . . . . . . Triggered . | . . . . . . . . . . . . . . . . Machines | -11 -10 -9 -8 -7 -7 -7 -6 -6 -6 -6 -5 -4 -4 -4 -4 ---------- Run | Yrd Mat Mat Mat Fac Low Low Fac Was Fac DSF Fac Fac Upp Upp War Machines Disabled 6 | . 2 1 . 1 . . . . . . 1 1 . . . Max in Single Turn 2 | . 2 1 . 1 . . . . . . 1 1 . . . Machines Repaired . | . . . . . . . . . . . . . . . . Machines Dismantled . | . . . . . . . . . . . . . . . . Machines Sabotaged . | . . . . . . . . . . . . . . . . Overloaded Fab Kills . | . . . . . . . . . . . . . . . . Hacking | -11 -10 -9 -8 -7 -7 -7 -6 -6 -6 -6 -5 -4 -4 -4 -4 --------- Run | Yrd Mat Mat Mat Fac Low Low Fac Was Fac DSF Fac Fac Upp Upp War Machines Accessed 22 | . 4 3 1 1 . . 3 . 1 . . 2 . 1 6 Terminals 14 | . 4 3 . 1 . . 3 . 1 . . 2 . . . Fabricators . | . . . . . . . . . . . . . . . . Repair Stations 1 | . . . 1 . . . . . . . . . . . . Recycling Units . | . . . . . . . . . . . . . . . . Scanalyzers . | . . . . . . . . . . . . . . . . Garrison Access . | . . . . . . . . . . . . . . . . Total Hacks 45 | . 8 6 4 3 . . 9 . 3 . . 4 . 1 7 Successful 18 | . 1 3 2 . . . 1 . 1 . . 2 . 1 7 Failed 27 | . 7 3 2 3 . . 8 . 2 . . 2 . . . Catastrophic 6 | . 2 1 . 2 . . 1 . . . . . . . . Database Lockouts . | . . . . . . . . . . . . . . . . Manual 19 | . 5 4 . 3 . . 4 . . . . . . 1 2 Terminals 33 | . 8 6 . 3 . . 9 . 3 . . 4 . . . Fabricators . | . . . . . . . . . . . . . . . . Repair Stations 4 | . . . 4 . . . . . . . . . . . . Recycling Units . | . . . . . . . . . . . . . . . . Scanalyzers . | . . . . . . . . . . . . . . . . Garrison Access . | . . . . . . . . . . . . . . . . Terminal Hacks 16 | . 1 3 . . . . 1 . 1 . . 2 . 1 7 Record 7 | . . 1 . . . . 1 . . . . . . . 5 Open Door 3 | . . . . . . . . . . . . . . 1 2 Open DSF 1 | . . . . . . . . . 1 . . . . . . Terminal Index 1 | . . 1 . . . . . . . . . . . . . Alert Level 1 | . . . . . . . . . . . . 1 . . . Zone Layout 3 | . 1 1 . . . . . . . . . 1 . . . Fabricator Hacks . | . . . . . . . . . . . . . . . . Repair Station Hacks 2 | . . . 2 . . . . . . . . . . . . Scan Component 2 | . . . 2 . . . . . . . . . . . . Recycling Unit Hacks . | . . . . . . . . . . . . . . . . Scanalyzer . | . . . . . . . . . . . . . . . . Garrison Access Hacks . | . . . . . . . . . . . . . . . . Unauthorized Hacks . | . . . . . . . . . . . . . . . . Terminals . | . . . . . . . . . . . . . . . . Fabricators . | . . . . . . . . . . . . . . . . Repair Stations . | . . . . . . . . . . . . . . . . Recycling Units . | . . . . . . . . . . . . . . . . Scanalyzers . | . . . . . . . . . . . . . . . . Garrison Access . | . . . . . . . . . . . . . . . . Data Cores Recovered 1 | . . . 1 . . . . . . . . . . . . Used . | . . . . . . . . . . . . . . . . Hacking Detections 9 | . 2 2 1 1 . . 2 . . . . 1 . . . Full Trace Events 5 | . . 1 1 . . . 2 . . . . 1 . . . Feedback Events 1 | . . . . . . . 1 . . . . . . . . Corruption 1 | . . . . . . . 1 . . . . . . . . Feedback Blocked . | . . . . . . . . . . . . . . . . Robot Schematics Acquired . | . . . . . . . . . . . . . . . . Robots Built . | . . . . . . . . . . . . . . . . Authchips . | . . . . . . . . . . . . . . . . Time . | . . . . . . . . . . . . . . . . Total Robot Build Rating . | . . . . . . . . . . . . . . . . Part Schematics Acquired . | . . . . . . . . . . . . . . . . Parts Built . | . . . . . . . . . . . . . . . . Authchips . | . . . . . . . . . . . . . . . . Time . | . . . . . . . . . . . . . . . . Total Part Build Rating . | . . . . . . . . . . . . . . . . Part Studies Acquired . | . . . . . . . . . . . . . . . . Parts Repaired . | . . . . . . . . . . . . . . . . Time . | . . . . . . . . . . . . . . . . Parts Recycled . | . . . . . . . . . . . . . . . . Recycled Matter . | . . . . . . . . . . . . . . . . Retrieved Matter . | . . . . . . . . . . . . . . . . Retrieved Components . | . . . . . . . . . . . . . . . . Parts Scanalyzed . | . . . . . . . . . . . . . . . . Part Schematics Acquired . | . . . . . . . . . . . . . . . . Parts Damaged . | . . . . . . . . . . . . . . . . Bothacking | -11 -10 -9 -8 -7 -7 -7 -6 -6 -6 -6 -5 -4 -4 -4 -4 ------------ Run | Yrd Mat Mat Mat Fac Low Low Fac Was Fac DSF Fac Fac Upp Upp War Used RIF Installer . | . . . . . . . . . . . . . . . . Robots Hacked . | . . . . . . . . . . . . . . . . Non-combat . | . . . . . . . . . . . . . . . . Combat . | . . . . . . . . . . . . . . . . Robot Hacks Applied . | . . . . . . . . . . . . . . . . Relay Couplers Released . | . . . . . . . . . . . . . . . . Fabnet Peak Effective % . | . . . . . . . . . . . . . . . . Robots Rewired . | . . . . . . . . . . . . . . . . Allies Hacked 1 | . . . . . . . . . . 1 . . . . . Hacks Repelled . | . . . . . . . . . . . . . . . . Allies | -11 -10 -9 -8 -7 -7 -7 -6 -6 -6 -6 -5 -4 -4 -4 -4 -------- Run | Yrd Mat Mat Mat Fac Low Low Fac Was Fac DSF Fac Fac Upp Upp War Total Allies 18 | . . . . . . . . 18 . . . . . . . Largest Group 18 | . . . . . . . . 18 7 7 2 . . . . Highest-Rated Group 656 | . . . . . . . . 656 283 283 49 . . . . Highest-Rated Ally 50 | . . . . . . . . 50 50 50 25 . . . . Initial Warlord ECA Mod 9 | . . . . . . . . . . . 9 8 8 8 8 Total Orders . | . . . . . . . . . . . . . . . . Ally Attacks 151 | . . . . . . . . 116 . 35 . . . . . Total Damage 6648 | . . . . . . . . 5663 . 985 . . . . . Kills 20 | . . . . . . . . 14 . 6 . . . . . Allies Corrupted 1 | . . . . . . . . . . . 1 . . . . Allies Melted 2 | . . . . . . . . . . . . . . . 2 Intel | -11 -10 -9 -8 -7 -7 -7 -6 -6 -6 -6 -5 -4 -4 -4 -4 ------- Run | Yrd Mat Mat Mat Fac Low Low Fac Was Fac DSF Fac Fac Upp Upp War Active Infowar (turns) 7437 | 12 547 597 142 591 914 . 106 281 10 155 575 428 841 592 1646 Optics 4622 | . . . . 591 914 . 106 281 10 155 575 202 . 142 1646 Terrain 1949 | . . . . . . . . . . . 323 226 841 559 . Seismic 1735 | 12 547 597 142 179 258 . . . . . . . . . . Jamming 41 | . . . . . . . . . . . 41 . . . . ECM 72 | . . . . . . . . . . . . 72 . . . Robot Analysis Total . | . . . . . . . . . . . . . . . . Derelict Logs Recovered 2 | . . . . . 1 . . . . . . . . 1 . Drone Launches 10 | . . . . . . . . . . . . . . 3 7 Drone Recoveries 9 | . . . . . . . . . . . . . . 3 6 Exploration | -11 -10 -9 -8 -7 -7 -7 -6 -6 -6 -6 -5 -4 -4 -4 -4 ------------- Run | Yrd Mat Mat Mat Fac Low Low Fac Was Fac DSF Fac Fac Upp Upp War Turns Passed 8677 | 94 547 604 369 591 914 68 406 281 10 155 575 531 845 740 1947 Spaces Moved 5505 | 54 249 276 263 386 530 37 400 297 6 79 380 278 438 445 1387 Core 645 | 11 . . . . 6 37 169 . . . . . . 90 332 Treads 1682 | . . 89 . . . . 70 34 . . . . 424 123 942 Legs 2123 | 43 249 171 80 41 331 . . 106 6 79 380 278 14 232 113 Wheels 704 | . . 16 150 345 193 . . . . . . . . . . Hover 14 | . . . . . . . 14 . . . . . . . . Flight 337 | . . . 33 . . . 147 157 . . . . . . . Fastest Speed 31 | 50 120 80 31 100 100 50 40 40 120 120 120 120 120 50 50 Average Speed 126 | 105 146 131 91 110 158 81 89 82 120 120 120 142 160 127 132 Slowest Speed 1000 | 120 190 330 280 120 330 300 1000 160 120 120 120 540 260 350 350 Overloaded Moves . | . . . . . . . . . . . . . . . . Propulsion Burnouts . | . . . . . . . . . . . . . . . . Robots Hopped 6 | . . . . . . . 6 . . . . . . . . Potential Cave-ins . | . . . . . . . . . . . . . . . . Cave-ins Triggered 1 | . . . . 1 . . . . . . . . . . . Exploration Rate (%) 39 | 4 41 26 16 8 64 7 12 97 . 88 11 10 63 55 89 Regions Visited 15 Branch Regions 5 Pre-discovered Areas 1 | . . . . . . . . . . . . . 1 . . Known Exits Taken 1 | . . . . . . . . . 1 . . . . . . Unknown Exits Taken 11 | 1 1 1 1 1 1 1 . . . . 1 1 1 1 . Scrap Searched 10 | . . . . . 2 . . . . . . . 5 3 . Spaces Dug 97 | . . 4 5 34 7 . . . . . 16 29 . 2 . Terrain Destroyed 289 | 2 48 67 39 34 7 . 1 . . . 16 29 . 2 44 Melee 97 | . . 4 5 34 7 . . . . . 16 29 . 2 . Projectile 1 | . . . . . . . 1 . . . . . . . . AOE 191 | 2 48 63 34 . . . . . . . . . . . 44 Terrain Rammed 1 | . . . 1 . . . . . . . . . . . . Walls Destroyed 1 | . . . 1 . . . . . . . . . . . . Machines Disabled . | . . . . . . . . . . . . . . . . Actions | -11 -10 -9 -8 -7 -7 -7 -6 -6 -6 -6 -5 -4 -4 -4 -4 --------- Run | Yrd Mat Mat Mat Fac Low Low Fac Was Fac DSF Fac Fac Upp Upp War Total 6569 | 73 388 411 350 463 578 55 426 329 9 124 451 349 538 549 1476 Wait 278 | . 91 11 5 6 9 . 2 9 2 23 19 4 28 39 30 Move 5481 | 53 248 275 262 385 529 36 390 296 5 78 379 277 437 444 1387 Hop 4 | . . . . . . . 4 . . . . . . . . Pick Up 64 | 6 6 10 9 2 5 . 4 4 . 3 2 4 2 2 5 Fast Attach 128 | 7 1 8 13 5 2 . 11 8 . 5 7 6 12 11 32 Attach 45 | . 2 7 6 3 5 1 4 . 2 . 1 3 7 2 2 Detach 4 | . . 1 . 1 1 . . . . . . . 1 . . Swap 40 | . 5 13 8 2 1 1 . 1 . 1 4 1 1 2 . Drop 103 | . 4 17 18 4 1 . 1 9 . 5 8 8 15 2 11 Fire 149 | 7 28 34 17 6 17 . 7 2 . . . 1 19 5 6 Melee 235 | . . 34 10 49 8 4 . . . 9 28 43 16 34 . Ram 22 | . . 1 2 . . 13 2 . . . . . . 1 3 Kick 11 | . 3 . . . . . . . . . . 1 . 7 . Crush 1 | . . . . . . . 1 . . . . . . . . Escape Stasis . | . . . . . . . . . . . . . . . . Rewire . | . . . . . . . . . . . . . . . . Trap . | . . . . . . . . . . . . . . . . Miscellaneous 4 | . . . . . . . . . . . 3 1 . . . Route ------- -11/Scrapyard -10/Materials (discovered 3 exits: *Mat x2 / [*Min]) -9/Materials -8/Materials -7/Factory -7/Lower Caves -7/Lower Caves -6/Factory -6/Waste -6/Factory -6/DSF -5/Factory -4/Factory -4/Upper Caves -4/Upper Caves -4/Warlord (discovered 1 exit: [*Pro]) History --------- Turn | Location | Event 6 | -11/Scrapyard | Discovered new exit (range 15) 95 | -11/Scrapyard | Entered Materials 226 | -10/Materials | Discovered new exit (range 18) 310 | -10/Materials | Build established: Mutant 512 | -10/Materials | Discovered new exit (range 8) 550 | -10/Materials | Discovered new exit (range 14) 595 | -10/Materials | Derelicts attacked the area 642 | -10/Materials | Entered another Materials area 642 | -9/Materials | Evolved 2 slots: Propulsion x1, Utility x1 903 | -9/Materials | Lost 3 parts (1p2w) 1186 | -9/Materials | Discovered new exit (range 16) 1216 | -9/Materials | Core integrity fell below 50% 1246 | -9/Materials | Entered another Materials area 1246 | -8/Materials | Evolved 2 slots: Propulsion x1, Utility x1 1441 | -8/Materials | Lost 5 parts (1p1n2u1w) 1610 | -8/Materials | Discovered new exit (range 5) 1615 | -8/Materials | Entered Factory 1615 | -7/Factory | Evolved 2 slots: Utility x1, Weapon x1 1861 | -7/Factory | Crushed by falling debris 1894 | -7/Factory | Lost 3 parts (1n2u) 2141 | -7/Factory | Discovered new exit (range 5) 2206 | -7/Factory | Entered Lower Caves 2245 | -7/Lower Caves | Encountered a Warlord checkpoint 2495 | -7/Lower Caves | Lost 6 parts (1p1n2u2w) 2543 | -7/Lower Caves | Learned Factory stockpile data 2812 | -7/Lower Caves | Entered a destroyed Warlord outpost 3080 | -7/Lower Caves | Discovered new exit (range 12) 3120 | -7/Lower Caves | Entered another Lower Caves area 3149 | -7/Lower Caves | Core integrity fell below 50% 3173 | -7/Lower Caves | Released all parts (4) 3181 | -7/Lower Caves | Discovered new exit (range 13) 3188 | -7/Lower Caves | Entered Factory 3188 | -6/Factory | Evolved 2 slots: Propulsion x1, Utility x1 3199 | -6/Factory | Lost 6 parts (2p1n1u2w) 3349 | -6/Factory | Found Launcher Loader 3434 | -6/Factory | Released all parts (7) 3507 | -6/Factory | Core integrity fell below 50% 3594 | -6/Factory | Sucked down chute 3594 | -6/Factory | Entered Waste 3595 | -6/Waste | Spotted C-40 Crusher 3596 | -6/Waste | Spotted C-40 Crusher 3613 | -6/Waste | Spotted C-40 Crusher 3618 | -6/Waste | Spotted C-40 Crusher 3628 | -6/Waste | Warlord forces began an assault 3663 | -6/Waste | Allies destroyed C-40 Crusher 3667 | -6/Waste | Spotted C-40 Crusher 3676 | -6/Waste | Found Damper Plating 3678 | -6/Waste | Allies destroyed C-40 Crusher 3740 | -6/Waste | Spotted C-40 Crusher 3756 | -6/Waste | Allies destroyed C-40 Crusher 3858 | -6/Waste | Discovered new exit (range 12) 3875 | -6/Waste | Entered Factory 3875 | -6/Factory | Accompanied by 7 allies 3883 | -6/Factory | Identified exit to DSF 3885 | -6/Factory | Entered DSF 3885 | -6/DSF | Accompanied by 7 allies 3902 | -6/DSF | Additional patrols routed to DSF 3960 | -6/DSF | Lost 3 allies 4023 | -6/DSF | Discovered new exit (range 15) 4026 | -6/DSF | Sterilization system engaged 4040 | -6/DSF | Entered Factory 4040 | -5/Factory | Accompanied by 2 allies 4040 | -5/Factory | Evolved 2 slots: Propulsion x1, Utility x1 4270 | -5/Factory | Build established: Scavenger-Gladiator 4558 | -5/Factory | P-70 Sage assimilated allied BM-KJH(m) 4579 | -5/Factory | Discovered new exit (range 22) 4615 | -5/Factory | Entered another Factory area 4615 | -4/Factory | Evolved 2 slots: Power x1, Propulsion x1 4732 | -4/Factory | Found Prototype Device 4732 | -4/Factory | Identified Exp. ECM Suite 4820 | -4/Factory | Lost 3 parts (1n2w) 4959 | -4/Factory | Found Hvy. Reactive Plating 5075 | -4/Factory | Build established: Scavenger-Mutant 5096 | -4/Factory | Discovered new exit (range 16) 5142 | -4/Factory | Cargo convoy interrupted 5146 | -4/Factory | Entered Upper Caves 5152 | -4/Upper Caves | Met a Warlord Commander 5153 | -4/Upper Caves | Learned location of Warlord (-4) 5154 | -4/Upper Caves | Warlord Commander delivered Encrypted Comm Array 5174 | -4/Upper Caves | Found Encrypted Comm Array 5442 | -4/Upper Caves | Build established: Mutant 5887 | -4/Upper Caves | Discovered new exit (range 10) 5991 | -4/Upper Caves | Entered another Upper Caves area 6025 | -4/Upper Caves | Learned location of 1 exit from Research 6227 | -4/Upper Caves | Build established: Derelict-Mutant 6444 | -4/Upper Caves | Lost 5 parts (1p2n1u1w) 6478 | -4/Upper Caves | Attracted the attention of an 0b10 outpost 6592 | -4/Upper Caves | Lost 5 parts (2p2n1u) 6624 | -4/Upper Caves | Spotted B-86 Titan 6659 | -4/Upper Caves | Lost 4 parts (1n2u1w) 6701 | -4/Upper Caves | Lost 4 parts (2n2w) 6710 | -4/Upper Caves | Discovered new exit (range 15) 6715 | -4/Upper Caves | Encountered a Warlord checkpoint 6731 | -4/Upper Caves | Entered Warlord 6786 | -4/Warlord | Received a Watcher feed algorithm from an ecstatic Tinkerer 6787 | -4/Warlord | Ran a Watcher feed algorithm 7178 | -4/Warlord | Build established: Derelict-Tank 7197 | -4/Warlord | Opened side exit 7286 | -4/Warlord | Discovered new exit (range 14) 7689 | -4/Warlord | Visited the Vortex Lab 7700 | -4/Warlord | Warlord's base attacked by MAIN.C 7713 | -4/Warlord | Found Prototype Launcher 7713 | -4/Warlord | Identified Vortex Catalyst Activator 7736 | -4/Warlord | Found Prototype Piercing Weapon 7736 | -4/Warlord | Identified Vortex Lance 7739 | -4/Warlord | Found Vortex Lance 7902 | -4/Warlord | Learned Testing stockpile data 7905 | -4/Warlord | Learned Armory garrison access intel 8003 | -4/Warlord | Build established: Derelict-Mutant 8012 | -4/Warlord | Found Prototype Special Weapon 8012 | -4/Warlord | Identified RU-N14's Throwing Claymores v3 8050 | -4/Warlord | Warlord forces counterattacked 8073 | -4/Warlord | Found Prototype Device 8073 | -4/Warlord | Identified Minesniffer Drone Bay 8077 | -4/Warlord | Found Minesniffer Drone Bay 8307 | -4/Warlord | Build established: Derelict-Tank 8331 | -4/Warlord | Spotted B-90 Cyclops 8331 | -4/Warlord | Spotted B-90 Cyclops 8337 | -4/Warlord | Destroyed B-90 Cyclops 8342 | -4/Warlord | Spotted B-90 Cyclops 8344 | -4/Warlord | Destroyed B-90 Cyclops 8375 | -4/Warlord | Warlord base infiltrated, sounded retreat 8377 | -4/Warlord | Released all parts (9) 8380 | -4/Warlord | Lost 4 parts (1n2u1w) 8380 | -4/Warlord | Spotted Executioner 8380 | -4/Warlord | Spotted Striker 8383 | -4/Warlord | Core integrity fell below 50% 8391 | -4/Warlord | Ran a Watcher feed algorithm 8416 | -4/Warlord | Spotted Striker 8438 | -4/Warlord | Lost 8 allies 8456 | -4/Warlord | Spotted Striker 8456 | -4/Warlord | Spotted B-90 Cyclops 8464 | -4/Warlord | Spotted Striker 8477 | -4/Warlord | Released all parts (6) 8478 | -4/Warlord | Met Warlord 8494 | -4/Warlord | Core integrity fell below 20% 8507 | -4/Warlord | Spotted B-86 Titan 8555 | -4/Warlord | Lost 6 allies 8615 | -4/Warlord | Released all parts (4) 8663 | -4/Warlord | Released all parts (3) 8678 | -4/Warlord | Destroyed by G-67 Veteran with Field Laser Last Messages --------------- 08615_ Released Hrd. Heavy Armor Plating. 08615_ Released Biometal Leg. 08615_ Released Med. Treads. 08615_ Acquired 19 matter. 08628_ Acquired Flexi-carbon Leg. 08630_ Acquired Myomer Leg. 08632_ Acquired 20 matter. 08634_ The unstable cave ceiling collapses. 08637_ Acquired Flexi-carbon Leg. 08642_ The unstable cave ceiling collapses. 08645_ Acquired 10 matter. 08663_ Released Myomer Leg. 08663_ Released Flexi-carbon Leg. 08669_ Connecting with WAR.Sys... 08676_ Slammed into G-73 Enforcer. 08677_ Slammed into G-67 Veteran. 08677_ Destabilizing: System corrupted (+1). 08678_ Slammed into G-67 Veteran. 08678_ G-67 Veteran knocked back. [Achievement: 10k Club] Map ----- +----------------------------------------------------+ | # ![""= * "#???# #???? ??? | | * ""=*!"############???# ##???# #?? | | ## ## #""#####?????????????## #???? #?? | | # ""#????????????????## #???? ???? | | # #""#????????????????# ##???? ???? | | ""#???????????????## ##????? ???? | | ## ""#???????????????# #?????? #???? | | #####""#???????????????# #?????? #???? | | #????###???????????????# ##?????? #???? | | ##??????????????????????# #??????? ##??? | | #?????????????????????#; ##????## #??? | | "#????????????????????#; ##??## #??? | | +"########???????????????#%* ##?# #??? | | #???????????#####=%;# ### #??? | | """" #??????????## # ;;## ## #??? | | """""" #??????????# #?## ## #??? | | " "" " #??????????# %!##?# ## ##??? | | #??????????# ##gg #?## #???? | | #########??????????#####; #??### ##???? | | ##????????????????????##; ##????######????? | | #????????????????????# ; ;##??????????????? | | ##????????????????????# ; ; #??????????????? | | #?????????????????????# ; ; #??????????????? | | #?????????????????????# ;e ; #??????????????? | | ??????????????????????? ;gg;#???????????????? | | ????????????????#######?#@e#????????????????? | | ???????????###?## # #?#eg#????????????????? | | ############X###""""""###%g#????????????????? | | == *%= %/ #????????????????? | | = ![ * #????????????????? | | ################""""""""####????????????????? | | ???????????????## ####???????????????????? | | ????????????????######??????????????????????? | | ????????????????????????????????????????????? | | ????????????????????????????????????????????? | | ????????????????????????????????????????????? | | | | | | | | | | | | | | | | | | | | | | | | | | | | | +----------------------------------------------------+ Best States ------------- Heat Dissipation 51 Energy Generation 47 Energy Capacity 420 Matter Stores 381 Matter Capacity 450 Sight Range 22 Terrain Scan Range 20 Terrain Scan Density 10 ECM Strength 3 Jamming Range 12 Armor Coverage 1425 Resistance: KI 40 Utility Shielding 33 Weapon Shielding 33 Point Defense Rating 160 Phase Shifting 15 Evasion (%) 67 Melee Accuracy 6 Armor Integrity Analysis 30 Recoil Reduction 3 Energy Filtering 45 Kinecelleration 30 Salvage Targeting 8 Defensive Hacking 10 Item Schematics ----------------- None Robot Schematics ------------------ None Fabricated ------------ Nothing Repaired ---------- Nothing Studied --------- None Alien Tech Used ----------------- None Achievements -------------- 10k Club A Powerful Ally? Hot Goods I Like You, Cogmind Leap Before You Look Part-time Excavator Release The Drones! Slippery One The More The Merrier Challenges ------------ None Game ------ Seed SurveybotAnalysisCorpse Manual? 0 Play Time 02:15:26 Cumulative 15.4 hours Start 2025.12.28 @ 21:01:08 End 2025.12.28 @ 23:59:51 Sessions 1 Manual Loads 0 Difficulty Rogue Special Mode None Game No. 24 Rogue 24 Adventurer 0 Explorer 0 Win Type - Total 0 Types 0/0/0/0/0/0/0/0/0/0 Lore% 12 Gallery% 23 Achievement% 16 Wizard Run 0 Options --------- Layout 1 ASCII 0 Keyboard 0 Movement Arrows Keybinds 1 Fullscreen 1 Font 24/Proggy Map View 50x35 Zoom Use 0% Tactical HUD 1 Map Filters NONE Filters NONE Steam 1 RUN: 2ae52c57-ac3b-46a3-ae03-e9369035f513